Cogmind - Beta 13 @@@ ROGUE MODE // 2024.07.27 @ 22:48:46 Player: Sgt. SmokeWeed Result: Destroyed by S-27 Virus with Autogun Performance ------------- Evolutions (4) 2000 Regions Visited (10) 2000 Robots Destroyed (124) 620 Value Destroyed (4072) 4072 Prototype IDs (27) 540 Alien Tech Used (0) 0 Bonus (768) 768 TOTAL SCORE: 10000 Bonus ------- High Alert Combat Kills 454 Follower Combat Kills 14 Aligned with FarCom 300 Cogmind --------- Core Integrity 0/850 Matter 118/300 Energy 65/100 System Corruption 2% Temperature Cool (0) Movement Core (50) Location -6/Lower Caves Parts ------- > --- POWER (1) -------- (None) > --- PROPULSION (4) --- (None) > --- UTILITY (6) ------ Hacking Suite > --- WEAPON (4) ------- (None) > --- INVENTORY (5) ---- (None) Peak State ------------ > --- POWER ------------ Fission Core > --- PROPULSION ------- Improved Treads Improved Treads Armored Treads Advanced Treads > --- UTILITY ---------- Improved Heat Sink Advanced Heat Sink Advanced Targeting Computer Hacking Suite Hacking Suite > --- WEAPON ----------- AWS/Thermal Scatter Rocket Array Scatter Rocket Array > --- INVENTORY -------- Light Treads Mini Assault Cannon Mini Grenade Launcher Mini Grenade Launcher Improved Grenade Launcher [Rating: 61] Favorites ----------- Power Light Nuclear Core Engine Ion Engine Power Core Light Nuclear Core Propulsion Improved Treads Treads Improved Treads Leg Carbon-fiber Leg Utility Improved Heat Sink Device Improved Heat Sink Processor Advanced Targeting Computer Hackware Hacking Suite Weapon Mini Grenade Launcher Energy Gun AWS/Thermal Energy Cannon Ion Burst Cannon Ballistic Gun Shotgun Ballistic Cannon Mini Assault Cannon Launcher Mini Grenade Launcher Build | -11 -10 -10 -9 -9 -9 -8 -8 -7 -6 -6 ------- Run | Yrd Mat Min Mat Min Exi Min Mat Fac Fac Low Slots Evolved 8 | . . . 2 . . . 2 2 2 . Power . | . . . . . . . . . . . Propulsion 2 | . . . . . . . . . 2 . Utility 4 | . . . . . . . 2 2 . . Weapon 2 | . . . 2 . . . . . . . Parts Attached 66 | 5 3 . 7 1 2 . 7 8 23 10 Power 9 | 1 . . 1 . . . 3 . 2 2 Engine 3 | 1 . . 1 . . . 1 . . . Core 6 | . . . . . . . 2 . 2 2 Reactor . | . . . . . . . . . . . Propulsion 18 | 2 1 . 2 . . . 1 2 7 3 Treads 14 | 2 1 . 2 . . . 1 2 4 2 Leg 4 | . . . . . . . . . 3 1 Wheel . | . . . . . . . . . . . Hover . | . . . . . . . . . . . Flight . | . . . . . . . . . . . Utility 10 | . . . . 1 . . 3 3 3 . Device 7 | . . . . 1 . . 3 1 2 . Storage . | . . . . . . . . . . . Processor 1 | . . . . . . . . 1 . . Hackware 2 | . . . . . . . . 1 1 . Protection . | . . . . . . . . . . . Artifact . | . . . . . . . . . . . Weapon 29 | 2 2 . 4 . 2 . . 3 11 5 Energy Gun 4 | 2 . . . . 1 . . . 1 . Energy Cannon 1 | . . . . . . . . . 1 . Ballistic Gun 6 | . 1 . 4 . . . . . 1 . Ballistic Cannon 2 | . . . . . . . . . 1 1 Launcher 16 | . 1 . . . 1 . . 3 7 4 Special Weapon . | . . . . . . . . . . . Impact Weapon . | . . . . . . . . . . . Slashing Weapon . | . . . . . . . . . . . Piercing Weapon . | . . . . . . . . . . . Special Melee Weapon . | . . . . . . . . . . . Unidentified Prototypes 4 | . . . 1 . . . . . 3 . Parts Lost 32 | . . . 1 . . . 2 4 12 13 Power 6 | . . . 1 . . . 2 1 . 2 Propulsion 8 | . . . . . . . . 1 4 3 Utility 6 | . . . . . . . . 1 4 1 Weapon 12 | . . . . . . . . 1 4 7 Highest Loss Streak 7 | . . . 1 . . . 1 2 7 5 To Critical Strikes 1 | . . . . . . . . . . 1 Average Slot Usage (%) 69 | . 71 71 76 84 82 77 70 75 71 40 Engine 3 | . 14 14 11 11 11 11 1 . . . Core 4 | . . . . . . . 6 6 5 4 Treads 17 | . 28 28 22 22 22 22 17 14 14 8 Leg 1 | . . . . . . . . . 4 3 Device 11 | . . . . 7 11 11 18 21 11 1 Processor 1 | . . . . . . . . 4 3 . Hackware 2 | . . . . . . . . 2 7 6 Energy Gun 5 | . 6 . . . 5 11 9 7 5 1 Ballistic Gun 5 | . 10 14 32 33 17 . . . 2 1 Ballistic Cannon 1 | . . . . . . . . . 2 5 Launcher 12 | . 10 14 11 11 16 22 18 14 10 5 Naked Turns . | . . . . . . . . . . . Heaviest Build 36 | 9 9 9 18 20 20 20 20 30 36 25 Greatest Support 88 | 40 40 40 46 46 46 46 46 46 88 43 Greatest Overweight (x) 6 | . . . . . . . . 1 6 1 Average Overweight (x) . | . . . . . . . . . . . Largest Inventory Capacity 5 | 5 5 5 5 5 5 5 5 5 5 5 Average Capacity 5 | 5 5 5 5 5 5 5 5 5 5 5 Most Carried 5 | . 5 5 5 5 5 5 5 5 5 3 Average Carried 3 | . 3 5 4 5 5 5 5 4 1 . Final Capacity 5 | 5 5 5 5 5 5 5 5 5 5 5 Final Carried 5 | . 5 5 5 5 5 5 5 5 . . Class Distribution -------------------- 49% | Skirmisher 25% | Mutant 12% | Gunner 4% | Scavenger-Skirmisher 3% | Bomber 3% | Hacker-Skirmisher Dominant Class ---------------- Mutant | -10/Materials Mutant | -10/Mines Gunner | -9/Materials Gunner | -9/Mines Gunner | -9/Exiles Skirmisher | -8/Mines Skirmisher | -8/Materials Skirmisher | -7/Factory Skirmisher | -6/Factory Mutant | -6/Lower Caves Resources | -11 -10 -10 -9 -9 -9 -8 -8 -7 -6 -6 ----------- Run | Yrd Mat Min Mat Min Exi Min Mat Fac Fac Low Matter Collected 2051 | 243 22 17 235 36 . 25 244 582 302 345 Remotely . | . . . . . . . . . . . Salvage Created 3187 | . 54 11 481 . . . 527 1187 638 289 Parts 191 | . 10 3 36 . . . 40 65 23 14 Haulers Intercepted 2 | . . . 1 . . . . . 1 . Recyclers Shooed 1 | . . . . . . . . . 1 . Parts Field Recycled . | . . . . . . . . . . . Retrieved Matter . | . . . . . . . . . . . Parts Self-Destructed 11 | . . . . . . . . . . 11 Prevented 2 | . . . . . . . . . . 2 Kills | -11 -10 -10 -9 -9 -9 -8 -8 -7 -6 -6 ------- Run | Yrd Mat Min Mat Min Exi Min Mat Fac Fac Low Combat Hostiles Destroyed 88 | . 4 1 15 . . . 15 28 14 11 Melee 1 | . . . . . . . . . 1 . Guns 36 | . 1 . 8 . . . 7 18 2 . Cannons 6 | . . . . . . . . . 1 5 AOE 45 | . 3 1 7 . . . 8 10 10 6 Classes Destroyed 17 | . 3 . 6 . . . 1 5 2 . Worker 7 | . . . 1 . . . 1 4 1 . Builder 10 | . . . 3 . . . 3 . 4 . Tunneler 2 | . . . . . . . . 1 1 . Hauler 2 | . . . 1 . . . . . 1 . Recycler 3 | . . . . . . . . 3 . . Carrier 1 | . . . . . . . . . 1 . Mechanic 1 | . . . . . . . . . 1 . Operator 3 | . 1 . . . . . . 1 1 . Watcher 7 | . . . 1 . . . 2 4 . . Swarmer 26 | . 3 1 . . . . 4 10 3 5 Grunt 49 | . 1 . 13 . . . 9 10 10 6 Brawler 2 | . . . 1 . . . . . 1 . Duelist 2 | . . . 1 . . . 1 . . . Sentry 2 | . . . . . . . 1 1 . . Hunter 1 | . . . . . . . . 1 . . Programmer 5 | . . . . . . . . 5 . . Heavy 1 | . . . . . . . . 1 . . Packrat 1 | . . . . . . . . . . 1 Best Kill Streak 17 | . 2 1 17 . . . 9 6 13 6 Combat Bots Only 12 | . 2 1 12 . . . 7 5 7 6 Max Kills in Single Turn 4 | . 2 1 4 . . . 3 4 4 2 Gunslinging . | . . . . . . . . . . . Exploded 3 | . 1 1 3 . . . 2 3 3 1 Melee 1 | . . . . . . . . . 1 . Uniques/NPCs Destroyed . | . . . . . . . . . . . Combat | -11 -10 -10 -9 -9 -9 -8 -8 -7 -6 -6 -------- Run | Yrd Mat Min Mat Min Exi Min Mat Fac Fac Low Hostile Shots Fired 378 | . 5 . 65 . . . 12 82 69 145 Missed 122 | . 1 . 25 . . . 3 37 15 41 Damage Taken 4835 | . 78 . 536 . . . 341 836 1304 1740 Core 1067 | . . . 76 . . . 35 105 193 658 Absorbed by Shields . | . . . . . . . . . . . Regen/Repaired (Parts) 138 | . . . . . . . 138 . . . Core Remaining (%) 91 | 100 . 100 . . . 81 93 85 . . Volleys Fired 93 | . 6 1 19 . . . 6 22 19 20 Largest 4 | . 2 2 4 . . . 2 2 4 3 Hottest 177 | . 53 53 99 . . . 60 75 177 147 Shots Fired 313 | . 12 2 65 . . . 44 111 45 34 Gun 192 | . 6 1 56 . . . 32 75 18 4 Cannon 33 | . . . . . . . . . 13 20 Launcher 88 | . 6 1 9 . . . 12 36 14 10 Special . | . . . . . . . . . . . Kinetic 108 | . 6 1 56 . . . . . 24 21 Thermal 117 | . . . . . . . 32 75 7 3 Explosive 87 | . 6 1 9 . . . 12 36 14 9 Electromagnetic 1 | . . . . . . . . . . 1 Robot Hit Streak 12 | . 5 . 11 . . . 9 12 6 12 Robot Miss Streak 10 | . 3 . 5 . . . 3 2 10 2 Penetration Max . | . . . . . . . . . . . Secondary Targets 2 | . . . 2 . . . . . . . Max Gunslinging Chain 1 | . . . 1 . . . . . . . Autonomous 110 | . . . . . . . 32 75 3 . Shots Hit Robots 175 | . 6 . 38 . . . 23 70 16 22 Core Hits 226 | . 7 1 37 . . . 28 57 68 28 Critical Kills . | . . . . . . . . . . . Critical Parts Destroyed 1 | . . . 1 . . . . . . . Critical Strikes 2 | . . . 1 . . . . . 1 . Destroy 1 | . . . 1 . . . . . . . Blast 1 | . . . . . . . . . 1 . Melee Attacks . | . . . . . . . . . . . Impact . | . . . . . . . . . . . Slashing . | . . . . . . . . . . . Piercing . | . . . . . . . . . . . Sneak Attacks . | . . . . . . . . . . . Combat Hostiles . | . . . . . . . . . . . Follow-up Attacks . | . . . . . . . . . . . Damage Inflicted 11332 | . 243 48 1426 3 . . 1382 3795 3045 1390 Guns 3269 | . 42 . 608 . . . 616 1869 87 47 Cannons 556 | . . . . . . . . . 132 424 Explosions 7402 | . 200 45 811 . . . 751 1901 2775 919 Melee . | . . . . . . . . . . . Ramming 105 | . 1 3 7 3 . . 15 25 51 . Kinetic 1298 | . 42 . 608 . . . . . 199 449 Thermal 3070 | . . . . . . . 726 1869 453 22 Explosive 6637 | . 200 45 811 . . . 641 1901 2250 789 Electromagnetic 222 | . . . . . . . . . 92 130 Impact . | . . . . . . . . . . . Slashing . | . . . . . . . . . . . Piercing . | . . . . . . . . . . . Highest Corruption 3 | . . . . . . . 1 3 2 2 Average Corruption 1 | . . . . . . . 1 2 2 2 Corruption Purged . | . . . . . . . . . . . Corruption Blocked . | . . . . . . . . . . . Effects 22 | . . . . . . . 5 6 4 7 Message Errors 6 | . . . . . . . 3 1 2 . Matter Fused 5 | . . . . . . . . 2 . 3 Heat Flow Errors 1 | . . . . . . . 1 . . . Energy Discharges 6 | . . . . . . . 1 1 2 2 Parts Fused 1 | . . . . . . . . 1 . . Data Loss (minor) 2 | . . . . . . . . 1 . 1 Data Loss (major) 1 | . . . . . . . . . . 1 Overload Shots . | . . . . . . . . . . . Overflow Damage 262 | . . . 9 . . . . 160 93 . Projectiles . | . . . . . . . . . . . Explosions 262 | . . . 9 . . . . 160 93 . Melee . | . . . . . . . . . . . Knockbacks 6 | . . . . . . . 1 . 2 3 Impact 2 | . . . . . . . 1 . 1 . Kinetic 4 | . . . . . . . . . 1 3 Secondary . | . . . . . . . . . . . Self-Inflicted Damage 603 | . 45 . 3 . . . 206 192 87 70 Shots 16 | . 1 . 1 . . . 3 5 3 3 Rammed 21 | . 2 1 3 1 . . 2 9 3 . Targets Rammed 29 | . 2 1 4 1 . . 4 10 7 . Kicked 3 | . . . . . . . . . 3 . Crushed 5 | . . . 1 . . . 2 1 1 . Highest Temperature 154 | . 3 . 154 . . . 142 . 66 57 Average Temperature 40 | . 3 . 50 . . . 54 . 22 23 Received Heat Transfer 1125 | . 6 . 207 . . . 63 75 504 270 Siege Activations . | . . . . . . . . . . . Robots Corrupted . | . . . . . . . . . . . Combat Hostiles . | . . . . . . . . . . . Parts Fried 1 | . . . . . . . . . 1 . Impact Corruptions . | . . . . . . . . . . . Robots Melted . | . . . . . . . . . . . Combat Hostiles . | . . . . . . . . . . . Parts Melted 6 | . . . . . . . 2 3 1 . Heat Transferred 3371 | . . . . . . . 827 2220 287 37 Parts Sabotaged 2 | . . . . . . . . . 2 . Parts Stolen . | . . . . . . . . . . . Parts Stripped . | . . . . . . . . . . . Power Chain Reactions . | . . . . . . . . . . . Alert | -11 -10 -10 -9 -9 -9 -8 -8 -7 -6 -6 ------- Run | Yrd Mat Min Mat Min Exi Min Mat Fac Fac Low Peak Influence 839 | . 228 171 425 165 . . 564 839 625 . Initial 410 | . . 88 . 165 . . . 177 410 . Average 288 | . 88 122 176 165 . . 309 303 500 . Maximum Alert Level 3 | . 1 . 2 . . . 2 3 2 . Low Security (%) 48 | 100 79 100 62 100 . 100 26 53 . . Level 1 16 | . 20 . 27 . . . 50 14 5 . Level 2 34 | . . . 9 . . . 22 29 94 . Level 3 1 | . . . . . . . . 3 . . Level 4 . | . . . . . . . . . . . Level 5 . | . . . . . . . . . . . High Security . | . . . . . . . . . . . Max Security . | . . . . . . . . . . . Squads Dispatched 19 | . 1 . 3 . . . 2 9 4 . Investigation 2 | . . . 1 . . . . 1 . . Extermination 3 | . . . . . . . . 3 . . Reinforcement 11 | . 1 . 2 . . . 2 5 1 . Assault 3 | . . . . . . . . . 3 . Garrison . | . . . . . . . . . . . Intercept . | . . . . . . . . . . . Searches Triggered . | . . . . . . . . . . . Construction Impeded 3 | . . . 1 . . . . 1 1 . Haulers Reinforced 1 | . . . . . . . . 1 . . Active Scanning Responses . | . . . . . . . . . . . Cargo Convoy Interrupts . | . . . . . . . . . . . Stealth | -11 -10 -10 -9 -9 -9 -8 -8 -7 -6 -6 --------- Run | Yrd Mat Min Mat Min Exi Min Mat Fac Fac Low Distress Signals 4 | . 1 . 1 . . . 1 1 . . Communications Jammed . | . . . . . . . . . . . Distress Signals . | . . . . . . . . . . . Times Spotted 123 | . 7 1 20 . . . 18 40 19 18 Peak Tracking Total 9 | . 3 . 7 . . . 5 5 9 7 Tactical Retreats 2 | . 1 . . . . . . . . 1 Traps | -11 -10 -10 -9 -9 -9 -8 -8 -7 -6 -6 ------- Run | Yrd Mat Min Mat Min Exi Min Mat Fac Fac Low Traps Triggered 5 | . . . . . . . 1 1 3 . Indirectly . | . . . . . . . . . . . Trap Hack Attempts . | . . . . . . . . . . . Triggered . | . . . . . . . . . . . Disarmed . | . . . . . . . . . . . Reprogrammed . | . . . . . . . . . . . Reused . | . . . . . . . . . . . Traps Extracted . | . . . . . . . . . . . Installed . | . . . . . . . . . . . Triggered . | . . . . . . . . . . . Machines | -11 -10 -10 -9 -9 -9 -8 -8 -7 -6 -6 ---------- Run | Yrd Mat Min Mat Min Exi Min Mat Fac Fac Low Machines Disabled 25 | . 2 . 3 . . . 3 6 9 2 Max in Single Turn 6 | . 1 . 2 . . . 3 3 6 1 Garrison Access 1 | . . . . . . . . . 1 . Machines Repaired . | . . . . . . . . . . . Machines Dismantled . | . . . . . . . . . . . Machines Sabotaged . | . . . . . . . . . . . Overloaded Fab Kills . | . . . . . . . . . . . Hacking | -11 -10 -10 -9 -9 -9 -8 -8 -7 -6 -6 --------- Run | Yrd Mat Min Mat Min Exi Min Mat Fac Fac Low Machines Accessed 4 | . 1 . 1 . 1 . 1 . . . Terminals 2 | . 1 . 1 . . . . . . . Fabricators . | . . . . . . . . . . . Repair Stations 1 | . . . . . . . 1 . . . Recycling Units . | . . . . . . . . . . . Scanalyzers . | . . . . . . . . . . . Garrison Access . | . . . . . . . . . . . Total Hacks 10 | . 1 . 3 . 1 . 5 . . . Successful 4 | . 1 . . . 1 . 2 . . . Failed 6 | . . . 3 . . . 3 . . . Catastrophic . | . . . . . . . . . . . Database Lockouts . | . . . . . . . . . . . Manual 2 | . 1 . . . 1 . . . . . Terminals 4 | . 1 . 3 . . . . . . . Fabricators . | . . . . . . . . . . . Repair Stations 5 | . . . . . . . 5 . . . Recycling Units . | . . . . . . . . . . . Scanalyzers . | . . . . . . . . . . . Garrison Access . | . . . . . . . . . . . Terminal Hacks 2 | . 1 . . . 1 . . . . . Branch Access Points 1 | . 1 . . . . . . . . . Derelict Proto ID Bank 1 | . . . . . 1 . . . . . Fabricator Hacks . | . . . . . . . . . . . Repair Station Hacks 2 | . . . . . . . 2 . . . Scan Component 1 | . . . . . . . 1 . . . Repair 1 | . . . . . . . 1 . . . Recycling Unit Hacks . | . . . . . . . . . . . Scanalyzer . | . . . . . . . . . . . Garrison Access Hacks . | . . . . . . . . . . . Unauthorized Hacks . | . . . . . . . . . . . Terminals . | . . . . . . . . . . . Fabricators . | . . . . . . . . . . . Repair Stations . | . . . . . . . . . . . Recycling Units . | . . . . . . . . . . . Scanalyzers . | . . . . . . . . . . . Garrison Access . | . . . . . . . . . . . Data Cores Recovered . | . . . . . . . . . . . Used . | . . . . . . . . . . . Hacking Detections 2 | . . . 1 . . . 1 . . . Full Trace Events 2 | . . . 1 . . . 1 . . . Feedback Events . | . . . . . . . . . . . Feedback Blocked . | . . . . . . . . . . . Robot Schematics Acquired . | . . . . . . . . . . . Robots Built . | . . . . . . . . . . . Authchips . | . . . . . . . . . . . Time . | . . . . . . . . . . . Total Robot Build Rating . | . . . . . . . . . . . Part Schematics Acquired . | . . . . . . . . . . . Parts Built . | . . . . . . . . . . . Authchips . | . . . . . . . . . . . Time . | . . . . . . . . . . . Total Part Build Rating . | . . . . . . . . . . . Parts Repaired 1 | . . . . . . . 1 . . . Time 32 | . . . . . . . 32 . . . Parts Recycled . | . . . . . . . . . . . Recycled Matter . | . . . . . . . . . . . Retrieved Matter . | . . . . . . . . . . . Retrieved Components . | . . . . . . . . . . . Parts Scanalyzed . | . . . . . . . . . . . Part Schematics Acquired . | . . . . . . . . . . . Parts Damaged . | . . . . . . . . . . . Bothacking | -11 -10 -10 -9 -9 -9 -8 -8 -7 -6 -6 ------------ Run | Yrd Mat Min Mat Min Exi Min Mat Fac Fac Low Used RIF Installer . | . . . . . . . . . . . Robots Hacked . | . . . . . . . . . . . Non-combat . | . . . . . . . . . . . Combat . | . . . . . . . . . . . Robot Hacks Applied . | . . . . . . . . . . . Relay Couplers Released 2 | . . . . . . . . . 2 . Machine Destruction 2 | . . . . . . . . . 2 . Fabnet Peak Effective % . | . . . . . . . . . . . Robots Rewired . | . . . . . . . . . . . Allies Hacked . | . . . . . . . . . . . Hacks Repelled . | . . . . . . . . . . . Allies | -11 -10 -10 -9 -9 -9 -8 -8 -7 -6 -6 -------- Run | Yrd Mat Min Mat Min Exi Min Mat Fac Fac Low Total Allies 1 | . . 1 . . . . . . . . Largest Group 1 | . . 1 . . . . . . . . Highest-Rated Group 31 | . . 31 . . . . . . . . Highest-Rated Ally 31 | . . 31 . . . . . . . . Total Orders . | . . . . . . . . . . . Ally Attacks 11 | . . 11 . . . . . . . . Total Damage 102 | . . 102 . . . . . . . . Kills 2 | . . 2 . . . . . . . . Allies Corrupted . | . . . . . . . . . . . Allies Melted . | . . . . . . . . . . . Intel | -11 -10 -10 -9 -9 -9 -8 -8 -7 -6 -6 ------- Run | Yrd Mat Min Mat Min Exi Min Mat Fac Fac Low Robot Analysis Total . | . . . . . . . . . . . Derelict Logs Recovered 3 | . . 1 . . . . . . . 2 Drone Launches . | . . . . . . . . . . . Drone Recoveries . | . . . . . . . . . . . Exploration | -11 -10 -10 -9 -9 -9 -8 -8 -7 -6 -6 ------------- Run | Yrd Mat Min Mat Min Exi Min Mat Fac Fac Low Turns Passed 5426 | 72 268 453 255 90 356 130 602 1531 908 761 Spaces Moved 3244 | 43 148 270 108 55 221 82 335 899 562 521 Core 114 | 3 . . . . . . . . 4 107 Treads 2724 | 40 148 270 108 55 221 82 335 899 299 267 Legs 406 | . . . . . . . . . 259 147 Wheels . | . . . . . . . . . . . Hover . | . . . . . . . . . . . Flight . | . . . . . . . . . . . Fastest Speed 50 | 50 160 160 160 160 160 160 160 157 120 50 Average Speed 152 | 152 160 160 160 160 160 160 160 159 142 132 Slowest Speed 350 | 160 160 160 160 160 160 160 160 240 350 250 Overloaded Moves . | . . . . . . . . . . . Propulsion Burnouts . | . . . . . . . . . . . Robots Hopped . | . . . . . . . . . . . Cave-ins Triggered . | . . . . . . . . . . . Exploration Rate (%) 30 | 4 29 65 15 10 60 21 24 24 14 74 Regions Visited 10 Branch Regions 5 Pre-discovered Areas . | . . . . . . . . . . . Known Exits Taken 1 | . 1 . . . . . . . . . Unknown Exits Taken 9 | 1 . 1 1 1 1 1 1 1 1 . Scrap Searched 6 | . . 1 . 1 . 1 . . . 3 Spaces Dug 10 | . . 10 . . . . . . . . Terrain Destroyed 580 | . 60 10 64 . . . 125 207 69 45 Melee . | . . . . . . . . . . . Projectile 20 | . . . . . . . 7 6 4 3 AOE 560 | . 60 10 64 . . . 118 201 65 42 Terrain Rammed . | . . . . . . . . . . . Walls Destroyed . | . . . . . . . . . . . Machines Disabled . | . . . . . . . . . . . Actions | -11 -10 -10 -9 -9 -9 -8 -8 -7 -6 -6 --------- Run | Yrd Mat Min Mat Min Exi Min Mat Fac Fac Low Total 3520 | 47 167 289 142 56 224 81 385 952 618 559 Wait 60 | . . 18 . . . . 32 7 . 3 Move 3234 | 42 147 269 107 54 220 81 334 898 561 521 Hop . | . . . . . . . . . . . Pick Up 13 | . 6 . 3 . . . . 2 2 . Fast Attach 39 | 5 1 . 2 1 1 . 6 4 13 6 Attach 15 | . . . 3 . . . . 1 8 3 Detach 4 | . . . . . . . . . 1 3 Swap 12 | . 2 . 2 . 1 . 1 3 2 1 Drop 21 | . 3 . 2 . 2 . 2 5 5 2 Fire 93 | . 6 1 19 . . . 6 22 19 20 Melee . | . . . . . . . . . . . Ram . | . . . . . . . . . . . Kick 3 | . . . . . . . . . 3 . Crush 26 | . 2 1 4 1 . . 4 10 4 . Escape Stasis . | . . . . . . . . . . . Rewire . | . . . . . . . . . . . Trap . | . . . . . . . . . . . Miscellaneous . | . . . . . . . . . . . Route ------- -11/Scrapyard -10/Materials (discovered 3 exits: *Mat / *Min x2) -10/Mines -9/Materials -9/Mines -9/Exiles -8/Mines -8/Materials -7/Factory -6/Factory -6/Lower Caves History --------- Turn | Location | Event 23 | -11/Scrapyard | Discovered new exit (range 15) 73 | -11/Scrapyard | Entered Materials 219 | -10/Materials | Discovered new exit (range 8) 275 | -10/Materials | Identified exit to Mines 306 | -10/Materials | Build established: Mutant 341 | -10/Materials | Entered Mines 344 | -10/Mines | Received a Mining Laser from a helpful Derelict 514 | -10/Mines | Learned Materials garrison access intel 785 | -10/Mines | Discovered new exit (range 7) 794 | -10/Mines | Entered Materials 794 | -9/Materials | Evolved 2 slots: Weapon x2 958 | -9/Materials | Discovered new exit (range 15) 1049 | -9/Materials | Entered Mines 1052 | -9/Mines | Destroyed 12 combat bots 1093 | -9/Mines | Build established: Gunner 1129 | -9/Mines | Deemed a non-threat by the Exiles lab entrance 1131 | -9/Mines | Discovered new exit (range 5) 1139 | -9/Mines | Entered Exiles 1178 | -9/Exiles | Met 8R-AWN 1207 | -9/Exiles | Met EX-HEX 1251 | -9/Exiles | Met EX-BIN 1271 | -9/Exiles | Aligned with FarCom system 1272 | -9/Exiles | Given EX-Vault access code 1309 | -9/Exiles | Opened EX-Vault 1328 | -9/Exiles | Found AWS/Thermal 1363 | -9/Exiles | Warned to stay clear of 0b10 Research branches 1419 | -9/Exiles | Met EX-DEC 1479 | -9/Exiles | Discovered new exit (range 10) 1495 | -9/Exiles | Left Exiles lab with AWS/Thermal 1495 | -9/Exiles | Entered Mines 1566 | -8/Mines | Discovered new exit (range 15) 1625 | -8/Mines | Entered Materials 1625 | -8/Materials | Evolved 2 slots: Utility x2 1626 | -8/Materials | Loaded intel: 1 garrison access location 1783 | -8/Materials | Build established: Skirmisher 1830 | -8/Materials | Destroyed 7 combat bots 2047 | -8/Materials | Repaired Imp. Treads 2202 | -8/Materials | Discovered new exit (range 16) 2227 | -8/Materials | Entered Factory 2227 | -7/Factory | Evolved 2 slots: Utility x2 3726 | -7/Factory | Discovered new exit (range 15) 3758 | -7/Factory | Entered another Factory area 3758 | -6/Factory | Evolved 2 slots: Propulsion x2 4013 | -6/Factory | Found Prototype Launcher 4013 | -6/Factory | Identified Scatter Rocket Array 4019 | -6/Factory | Found Scatter Rocket Array 4108 | -6/Factory | First assault squad dispatched 4146 | -6/Factory | Spotted B-75 Beast 4244 | -6/Factory | Destroyed 7 combat bots 4251 | -6/Factory | Lost 4 parts (1u3w) 4338 | -6/Factory | Lost 7 parts (4n2u1w) 4660 | -6/Factory | Discovered new exit (range 6) 4666 | -6/Factory | Entered Lower Caves 4780 | -6/Lower Caves | Learned Factory terminal intel 4798 | -6/Lower Caves | Spotted B-75 Beast 4888 | -6/Lower Caves | Encountered a Warlord checkpoint 4898 | -6/Lower Caves | Core integrity fell below 50% 4952 | -6/Lower Caves | Lost 3 allies 5157 | -6/Lower Caves | Build established: Mutant 5296 | -6/Lower Caves | Learned Factory stockpile data 5402 | -6/Lower Caves | Lost 3 parts (1p1n1w) 5412 | -6/Lower Caves | Attracted the attention of an 0b10 base 5419 | -6/Lower Caves | Core integrity fell below 20% 5427 | -6/Lower Caves | Destroyed by S-27 Virus with Autogun Last Messages --------------- Acquired 21 matter. The unstable cave ceiling collapses. S-27 Virus springs to life. Searching scrap... Found Adv. Terrain Scanner. Found 14 Matter. Acquired 14 matter. S-27 Virus destroyed. Machine disabled. Proton Missile Launcher destroyed. Autogun self-destruct mechanism malfunctions. S-27 Virus misfires. Penetrated by Slug. Critical hit (Destroy). Arm. Treads destroyed. Mni. Assault Cannon destroyed. Proton Missile Launcher destroyed. Slug penetrates Machine. Outpost Terminal disabled. Corrupted VTOL Module self-destruct mechanism malfunctions. Map ----- +----------------------------------------------------+ | ?????????????????????????????????????????????????? | | ?????????????????????????????????????????????????# | | ?????????????????????????????????????????????????# | | ?????????????????????????????????????????????????# | | ?????????????????????????????????????????????????# | | ?????????????????????????????????????????????????# | | ?????????????????????????????????????????????????# | | ?????????????????????????????????????????????????# | | ?????????????????????????????????????????????????# | | ????????????????????????????????????????????????## | | ????????????????????????????????????????????????#% | | ??????????????????????????????????????????????### | | ?????????????????????????????????????????????## | | ?????????????????????????????????????????????# | | ?????????????????????????????????????????????# | | ?????????????????????????????????????????????# | | ???????????????????????????????? ??????????# | | ??????????????????????????????? ??????????## | | ??????????????????????????????? ???????????## | | ??????????????????????????????? ????????????### | | ??????????????????????????????? #??????????????# | | ??????????????????????????????? #???????####???# | | ????????????????########++###### #???????# ##??# | | ????????????????#"""""" """# ##???### #??# | | ????????????????# ""# ##?## ??# | | ????????????????# @ "# ### ??# | | ????????????????####### "# ## | | ????????????????# "# ## | | ????????????????+ "# #?# | | ????????????????+ " # ## #??# ## | | ????????????????# ; ## #??##??# | | ????????????????##### ; # #??????# | | ????????????????# # Y[ s # #??????# | | ????????????????# =s #??????# | | ????????????????# ss # #####??? | | ????????????????# s! ##?? | | ????????????????# # " #?? | | ??????????????? ######++### # # ### ##? | | ?????????????? % % ###?# ## | | ?????????????? ####???# # | | ???????????????# % #??????# # | | ???????????????# ####??????#### # | | ???????????????# #???????????## # | | ???????????????# ###???????????#" | | ???????????????# ## #??????????""""" | | ????????????????? ??## #????????" ## | | ?????????????????????#### #??????#"""""" ##? | | ????????????????????????## ##???????"""##" #?? | | ?????????????????????????## ##?????????#?? #?? | | ??????????????????????????#####????????????#####?? | +----------------------------------------------------+ Best States ------------- Heat Dissipation 89 Energy Generation 19 Energy Capacity 315 Matter Stores 300 Matter Capacity 300 Sight Range 16 Terrain Scan Density 10 Evasion (%) 55 Targeting Accuracy 8 Recoil Reduction 4 Particle Charging 15 Offensive Hacking 20 Item Schematics ----------------- None Robot Schematics ------------------ None Fabricated ------------ Nothing Alien Tech Used ----------------- None Achievements -------------- None Challenges ------------ None Game ------ Seed MinesnifferUtilityLaser Manual? 0 Play Time 00:31:32 Cumulative 49.8 hours Start 2024.07.27 @ 22:18:45 End 2024.07.27 @ 22:48:46 Sessions 1 Manual Loads 0 Difficulty Rogue Special Mode None Game No. 111 Rogue 41 Adventurer 70 Explorer 0 Win Type - Total 0 Types 0/0/0/0/0/0/0/0/0 Lore% 34 Gallery% 37 Achievement% 30 Wizard Run 0 Options --------- Layout 0 ASCII 0 Keyboard 0 Movement Mouse Keybinds 0 Fullscreen 1 Font 24/Smallcaps Map View 76x50 Zoom Use 0% Tactical HUD 0 Map Filters NONE Filters NONE Steam 1 RUN: 8281f871-2931-4086-9585-45751a9ccb73